fUSD/lending_fUSD_20250630
["ID","MTS","AMOUNT","RATE_DAILY","PERIOD"]
[368692471,1751301866346,-1025.61,0.00013893,2]
[368692472,1751301866377,-795.15,0.00013893,2]
[368692473,1751301866408,-1009.99,0.00013893,2]
[368692474,1751301866441,-490.0,0.00013893,2]
[368692475,1751301866476,-1303.64,0.00013893,2]
[368692476,1751301866509,-2823.92,0.00013893,2]
[368692477,1751301866542,-490.0,0.00013893,2]
[368692478,1751301866575,-799.26,0.00013893,2]
[368692479,1751301866863,-540.9,0.00013893,2]
[368692480,1751301866895,-2232.48,0.00013893,2]
[368692481,1751301866925,-1101.99,0.00013893,2]
[368692482,1751301866955,-956.47,0.00013893,2]
[368692483,1751301866985,-1187.43,0.00013893,2]
[368692484,1751301867023,-490.0,0.00013892,2]
[368692485,1751301867045,-490.0,0.00013893,2]
[368692486,1751301867135,-490.0,0.00013893,2]
[368692487,1751301867180,-631.89,0.00013893,2]
[368692488,1751301867190,-119.71,0.00013893,2]
[368692489,1751301867231,-1563.78,0.00013893,2]
[368692490,1751301867261,-490.0,0.00013893,2]
[368692491,1751301867291,-823.18,0.00013893,2]
[368692492,1751301867324,-976.67,0.00013893,2]
[368692493,1751301867354,-2892.11,0.00013893,2]
[368692494,1751301867384,-886.05,0.00013893,2]
[368692495,1751301867414,-1441.32,0.00013893,2]
[368692496,1751301867445,-2079.86,0.00013893,2]
[368692497,1751301867476,-775.11,0.00013893,2]
[368692498,1751301867505,-802.12,0.00013893,2]
[368692499,1751301867536,-490.0,0.00013893,2]
[368692500,1751301867566,-1514.13,0.00013893,2]
[368692501,1751301867590,-702.09,0.00013893,2]
[368692502,1751301867606,-490.0,0.00013893,2]
[368692503,1751301867619,-490.0,0.00013893,2]
[368692504,1751301867635,-526.92,0.00013893,2]
[368692505,1751301867674,-7782.98,0.00013893,2]
[368692506,1751301867706,-490.0,0.00013893,2]
[368692507,1751301867735,-3928.63,0.00013893,2]
[368692508,1751301867768,-1202.1,0.00013893,2]
[368692509,1751301867787,-490.0,0.00013893,2]
[368692510,1751301867809,-490.0,0.00013893,2]
[368692511,1751301867837,-490.0,0.00013893,2]
[368692512,1751301867859,-490.0,0.00013893,2]
[368692513,1751301867871,-106.67511686,0.00013893,2]
[368692514,1751301867908,-1224.04488314,0.00013893,2]
[368692515,1751301867938,-683.19,0.00013893,2]
[368692516,1751301867969,-526.93,0.00013893,2]
[368692517,1751301868002,-1428.22,0.00013893,2]
[368692518,1751301868034,-1650.85,0.00013893,2]
[368692519,1751301868064,-1908.18,0.00013893,2]
[368692520,1751301868093,-1902.5,0.00013893,2]
[368692521,1751301868124,-1684.52,0.00013893,2]
[368692522,1751301868154,-2286.52023372,0.00013893,2]
[368692523,1751301868203,-3410.08976628,0.00013893,2]
[368692524,1751301868233,-7678.57,0.00013893,2]
[368692525,1751301868263,-490.0,0.00013893,2]
[368692526,1751301868291,-490.0,0.00013893,2]
[368692527,1751301868322,-1505.34046744,0.00013893,2]
[368692528,1751301868361,-251.09563561,0.00013893,2]
[368692529,1751301868377,-570.56,0.00013893,2]
[368692530,1751301868390,-570.56,0.00013893,2]
[368692531,1751301868412,-1222.5,0.00013893,2]
[368692532,1751301868423,-237.28389695,0.00013893,2]
[368692533,1751301868433,-252.71610305,0.00013893,2]
[368692534,1751301868446,-926.9,0.00013893,2]
[368692535,1751301868474,-192.54389695,0.00013893,2]
[368692536,1751301868485,-307.45610305,0.00013893,2]
[368692537,1751301868521,-1904.89389695,0.00013893,2]
[368692538,1751301868553,-695.76,0.00013893,2]
[368692539,1751301868587,-1106.72,0.00013893,2]
[368692540,1751301868618,-3957.08,0.00013893,2]
[368692541,1751301868649,-490.0,0.00013893,2]
[368692542,1751301868682,-716.05,0.00013893,2]
[368692543,1751301868713,-1484.55,0.00013893,2]
[368692544,1751301868749,-2269.94,0.00013893,2]
[368692545,1751301868781,-1318.5822061,0.00013893,2]
[368692546,1751301868799,-290.07929826,0.00013893,2]
[368692547,1751301868829,-276.25017068,0.00013893,2]
[368692548,1751301868849,-500.0,0.00013893,2]
[368692549,1751301868873,-500.0,0.00013893,2]
[368692550,1751301868885,-546.51832496,0.00013893,2]
[368692551,1751301868896,-59.93012039,0.00013893,2]
[368692552,1751301868936,-1725.02987961,0.00013893,2]
[368692553,1751301868966,-495.8,0.00013893,2]
[368692554,1751301868996,-4834.89,0.00013893,2]
[368692555,1751301869027,-1405.1,0.00013893,2]
[368692556,1751301869058,-928.8,0.00013893,2]
[368692557,1751301869087,-2144.28,0.00013893,2]
[368692558,1751301869108,-490.0,0.00013893,2]
[368692559,1751301869119,-719.04,0.00013893,2]
[368692560,1751301869135,-1246.88,0.00013893,2]
[368692561,1751301869147,-490.0,0.00013893,2]
[368692562,1751301869170,-2047.94,0.00013893,2]
[368692563,1751301869214,-6247.49,0.00013893,2]
[368692564,1751301869227,-490.0,0.00013893,2]
[368692565,1751301869242,-490.0,0.00013893,2]
[368692566,1751301869254,-533.09,0.00013893,2]
[368692567,1751301869266,-490.0,0.00013893,2]
[368692568,1751301869309,-14498.07,0.00013893,2]
[368692569,1751301869322,-490.0,0.00013893,2]
[368692570,1751301869334,-490.0,0.00013893,2]
[368692571,1751301869351,-23.86,0.00013893,2]
[368692572,1751301869361,-476.55,0.00013893,2]
[368692573,1751301869489,-1395.97,0.00013893,2]
[368692574,1751301869955,-615.59,0.00013893,2]
[368692575,1751301869987,-543.85,0.00013893,2]
[368692576,1751301870019,-490.0,0.00013893,2]
[368692577,1751301870049,-514.06,0.00013893,2]
[368692578,1751301870082,-5983.62638447,0.00013893,2]
[368692579,1751301870137,-158.96280755,0.00013894,2]
[368692580,1751301870156,-1418.03,0.00013894,2]
[368692581,1751301870168,-490.0,0.00013894,2]
[368692582,1751301870200,-1249.69,0.00013894,2]
[368692583,1751301870215,-490.0,0.00013894,2]
[368692584,1751301870239,-621.8,0.00013894,2]
[368692585,1751301870263,-822.33,0.00013894,2]
[368692586,1751301870275,-490.0,0.00013894,2]
[368692587,1751301870296,-490.0,0.00013894,2]
[368692588,1751301870382,-1798.635755,0.00013894,2]
[368692589,1751301870528,-1891.778619,0.00013894,2]
[368692590,1751301870543,-1639.038611,0.00013894,2]
[368692591,1751301870561,-490.0,0.00013894,2]
[368692592,1751301870579,-781.39,0.00013894,2]
[368692593,1751301870594,-490.0,0.00013894,2]
[368692594,1751301870615,-1083.18,0.00013894,2]
[368692595,1751301870638,-154.789388,0.00013894,2]
[368692596,1751301870654,-760.03,0.00013894,2]
[368692597,1751301870704,-254.52319703,0.00013894,2]
[368692598,1751301870716,-490.0,0.00013894,2]
[368692599,1751301870812,-490.0,0.00013894,2]
[368692600,1751301870846,-996.19,0.00013894,2]
[368692601,1751301870858,-1500.0,0.00013894,2]
[368692602,1751301870880,-490.0,0.00013894,2]
[368692603,1751301870896,-1620.82,0.00013894,2]
[368692604,1751301870909,-490.0,0.00013894,2]
[368692605,1751301870926,-490.0,0.00013894,2]
[368692606,1751301870981,-505.65,0.00013894,2]
[368692607,1751301871039,-666.01,0.00013894,2]
[368692608,1751301871060,-490.0,0.00013894,2]
[368692609,1751301871073,-1211.03,0.00013894,2]
[368692610,1751301871096,-788.94,0.00013894,2]
[368692611,1751301871108,-661.69,0.00013894,2]
[368692612,1751301871175,-490.0,0.00013894,2]
[368692613,1751301871284,-796.62,0.00013894,2]
[368692614,1751301871317,-935.11,0.00013894,2]
[368692615,1751301871330,-1273.59,0.00013894,2]
[368692616,1751301871346,-719.65360594,0.00013894,2]
[368692617,1751301871469,-1198.04691075,0.00013894,2]
[368692618,1751301871481,-613.81,0.00013894,2]
[368692619,1751301871493,-490.0,0.00013894,2]
[368692620,1751301871505,-820.17,0.00013894,2]
[368692621,1751301871516,-792.81,0.00013894,2]
[368692622,1751301871533,-1778.52,0.00013894,2]
[368692623,1751301871551,-490.0,0.00013894,2]
[368692624,1751301871572,-490.0,0.00013894,2]
[368692625,1751301871584,-3107.29,0.00013894,2]
[368692626,1751301871600,-2839.28,0.00013894,2]
[368692627,1751301871635,-490.0,0.00013894,2]
[368692628,1751301871647,-857.92,0.00013894,2]
[368692629,1751301871662,-1653.45,0.00013894,2]
[368692630,1751301871687,-429.23572441,0.00013894,2]
[368692631,1751301871799,-1067.49,0.00013894,2]
[368692632,1751301871867,-500.0,0.00013894,2]
[368692633,1751301871897,-500.0,0.00013894,2]
[368692634,1751301871913,-490.0,0.00013894,2]
[368692635,1751301871929,-490.0,0.00013894,2]
[368692636,1751301872011,-906.06,0.00013894,2]
[368692637,1751301872052,-490.0,0.00013894,2]
[368692638,1751301872064,-4018.38,0.00013894,2]
[368692639,1751301872075,-3228.41,0.00013894,2]
[368692640,1751301872086,-840.92,0.00013894,2]
[368692641,1751301872097,-2172.59,0.00013894,2]
[368692642,1751301872118,-256.17144882,0.00013894,2]
[368692643,1751301872133,-490.0,0.00013894,2]
[368692644,1751301872144,-490.0,0.00013894,2]
[368692645,1751301872263,-490.0,0.00013894,2]
[368692646,1751301872275,-490.0,0.00013894,2]
[368692647,1751301872285,-1916.74,0.00013894,2]
[368692648,1751301872304,-1285.38,0.00013894,2]
[368692649,1751301872315,-3998.0,0.00013894,2]
[368692650,1751301872332,-1410.35,0.00013894,2]
[368692651,1751301872343,-743.52,0.00013894,2]
[368692652,1751301872366,-807.37,0.00013894,2]
[368692653,1751301872382,-490.0,0.00013894,2]
[368692654,1751301872393,-2884.17,0.00013894,2]
[368692655,1751301872471,-631.01045607,0.00013894,2]
[368692656,1751301872522,-1092.07,0.00013894,2]
[368692657,1751301872570,-549.76,0.00013894,2]
[368692658,1751301872701,-2327.37,0.00013894,2]
[368692659,1751301872746,-3813.7,0.00013894,2]
[368692660,1751301872767,-490.0,0.00013894,2]
[368692661,1751301872779,-1453.35,0.00013894,2]
[368692662,1751301872793,-4696.29,0.00013894,2]
[368692663,1751301872804,-687.37091214,0.00013894,2]
[368692664,1751301872827,-2639.74,0.00013894,2]
[368692665,1751301872839,-490.0,0.00013894,2]
[368692666,1751301872850,-2832.49,0.00013894,2]
[368692667,1751301872862,-942.64,0.00013894,2]
[368692668,1751301872873,-2358.8,0.00013894,2]
[368692669,1751301872896,-5043.14,0.00013894,2]
[368692670,1751301872919,-11.63817572,0.00013894,2]
[368692671,1751301873273,-490.0,0.00013894,2]
[368692672,1751301873283,-245.0,0.00013894,2]
[368692673,1751301873295,-245.0,0.00013894,2]
[368692674,1751301873305,-490.0,0.00013894,2]
[368692675,1751301873316,-490.0,0.00013894,2]
[368692676,1751301873326,-247.52,0.00013894,2]
[368692677,1751301873339,-242.48,0.00013894,2]
[368692678,1751301873349,-640.31,0.00013894,2]
[368692679,1751301873359,-8.32,0.00013894,2]
[368692680,1751301873383,-481.68,0.00013894,2]
[368692681,1751301873393,-24.12,0.00013894,2]
[368692682,1751301873407,-522.27,0.00013894,2]
[368692683,1751301873416,-554.69,0.00013894,2]
[368692684,1751301873435,-261.02,0.00013894,2]
[368692685,1751301873446,-511.17,0.00013894,2]
[368692686,1751301873456,-490.0,0.00013894,2]
[368692687,1751301873465,-490.0,0.00013894,2]
[368692688,1751301873475,-490.0,0.00013894,2]
[368692689,1751301873485,-731.93,0.00013894,2]
[368692690,1751301873495,-194.31,0.00013894,2]
[368692691,1751301873507,-319.43,0.00013894,2]
[368692692,1751301873517,-388.73,0.00013894,2]
[368692693,1751301873537,-101.27,0.00013894,2]
[368692694,1751301873548,-404.8899004,0.00013894,2]
[368692695,1751301873558,-490.0,0.00013894,2]
[368692696,1751301873567,-490.0,0.00013894,2]
[368692697,1751301873578,-490.0,0.00013894,2]
[368692698,1751301873592,-811.64,0.00013894,2]
[368692699,1751301873602,-490.0,0.00013894,2]
[368692700,1751301873613,-138.8000996,0.00013894,2]
[368692701,1751301873626,-351.1999004,0.00013894,2]
[368692702,1751301873635,-490.0,0.00013894,2]
[368692703,1751301873645,-490.0,0.00013894,2]
[368692704,1751301873655,-689.76,0.00013894,2]
[368692705,1751301873667,-490.0,0.00013894,2]
[368692706,1751301873678,-220.0,0.00013894,2]
[368692707,1751301873687,-419.4700996,0.00013894,2]
[368692708,1751301873790,-155.93732504,0.00013894,2]
[368692709,1751301873800,-490.0,0.00013894,2]
[368692710,1751301873809,-712.76,0.00013894,2]
[368692711,1751301873821,-490.0,0.00013894,2]
[368692712,1751301873831,-490.0,0.00013894,2]
[368692713,1751301873840,-325.81123745,0.00013894,2]
[368692714,1751301873850,-490.0,0.00013894,2]
[368692715,1751301873859,-490.0,0.00013894,2]
[368692716,1751301873869,-490.0,0.00013894,2]
[368692717,1751301873879,-490.0,0.00013894,2]
[368692718,1751301873889,-490.0,0.00013894,2]
[368692719,1751301873898,-490.0,0.00013894,2]
[368692720,1751301873908,-490.0,0.00013894,2]
[368692721,1751301873918,-61.71143751,0.00013894,2]
[368692722,1751301873944,-1437.0,0.00013893,2]
[368692723,1751301873955,-428.28856249,0.00013894,2]
[368692724,1751301873964,-490.0,0.00013894,2]
[368692725,1751301873974,-172.48143751,0.00013894,2]
[368692726,1751301873996,-317.51856249,0.00013894,2]
[368692727,1751301874006,-210.0,0.00013894,2]
[368692728,1751301874016,-490.0,0.00013894,2]
[368692729,1751301874025,-102.74143751,0.00013894,2]
[368692730,1751301874046,-387.25856249,0.00013894,2]
[368692731,1751301874056,-512.73,0.00013894,2]
[368692732,1751301874066,-490.0,0.00013894,2]
[368692733,1751301874076,-321.27143751,0.00013894,2]
[368692734,1751301874087,-168.72856249,0.00013894,2]
[368692735,1751301874097,-490.0,0.00013894,2]
[368692736,1751301874107,-490.0,0.00013894,2]
[368692737,1751301874117,-490.0,0.00013894,2]
[368692738,1751301874127,-490.0,0.00013894,2]
[368692739,1751301874136,-89.66143751,0.00013894,2]
[368692740,1751301874149,-400.33856249,0.00013894,2]
[368692741,1751301874160,-248.53143751,0.00013894,2]
[368692742,1751301874172,-241.46856249,0.00013894,2]
[368692743,1751301874182,-248.53143751,0.00013894,2]
[368692744,1751301874194,-254.46,0.00013894,2]
[368692745,1751301874235,-12.15856249,0.00013894,2]
[368692746,1751301874245,-490.0,0.00013894,2]
[368692747,1751301874255,-523.45143751,0.00013894,2]
[368692748,1751301874281,-16.46856249,0.00013894,2]
[368692749,1751301874291,-490.0,0.00013894,2]
[368692750,1751301874301,-288.68143751,0.00013894,2]
[368692751,1751301874320,-201.31856249,0.00013894,2]
[368692752,1751301874329,-490.0,0.00013894,2]
[368692753,1751301874340,-318.67143751,0.00013894,2]
[368692754,1751301874352,-360.97856249,0.00013894,2]
[368692755,1751301874362,-129.02143751,0.00013894,2]
[368692756,1751301874374,-360.97856249,0.00013894,2]
[368692757,1751301874385,-490.0,0.00013894,2]
[368692758,1751301874394,-452.66143751,0.00013894,2]
[368692759,1751301874413,-587.22856249,0.00013894,2]
[368692760,1751301874423,-490.0,0.00013894,2]
[368692761,1751301874433,-961.46,0.00013894,2]
[368692762,1751301874443,-490.0,0.00013894,2]
[368692763,1751301874454,-295.23143751,0.00013894,2]
[368692764,1751301874474,-194.76856249,0.00013894,2]
[368692765,1751301874484,-295.23143751,0.00013894,2]
[368692766,1751301874501,-194.76856249,0.00013894,2]
[368692767,1751301874511,-538.62,0.00013894,2]
[368692768,1751301874520,-65.87143751,0.00013894,2]
[368692769,1751301874539,-540.9,0.00013894,2]
[368692770,1751301874695,-259.48856249,0.00013894,2]
[368692771,1751301874706,-490.0,0.00013894,2]
[368692772,1751301874716,-513.25,0.00013894,2]
[368692773,1751301874726,-490.0,0.00013894,2]
[368692774,1751301874735,-479.74143751,0.00013894,2]
[368692775,1751301874746,-10.25856249,0.00013894,2]
[368692776,1751301874756,-490.0,0.00013894,2]
[368692777,1751301874765,-490.0,0.00013894,2]
[368692778,1751301874774,-111.73143751,0.00013894,2]
[368692779,1751301874797,-378.26856249,0.00013894,2]
[368692780,1751301874807,-578.20143751,0.00013894,2]
[368692781,1751301874826,-243.57856249,0.00013894,2]
[368692782,1751301874835,-490.0,0.00013894,2]
[368692783,1751301874845,-453.85143751,0.00013894,2]
[368692784,1751301874862,-36.14856249,0.00013894,2]
[368692785,1751301874871,-450.17143751,0.00013894,2]
[368692786,1751301874906,-39.82856249,0.00013894,2]
[368692787,1751301874915,-490.0,0.00013894,2]
[368692788,1751301874925,-490.0,0.00013894,2]
[368692789,1751301874934,-490.0,0.00013894,2]
[368692790,1751301874944,-53.95143751,0.00013894,2]
[368692791,1751301874961,-490.0,0.00013894,2]
[368692792,1751301874985,-279.03856249,0.00013894,2]
[368692793,1751301874994,-490.0,0.00013894,2]
[368692794,1751301875003,-54.14143751,0.00013894,2]
[368692795,1751301875015,-435.85856249,0.00013894,2]
[368692796,1751301875024,-490.0,0.00013894,2]
[368692797,1751301875034,-50.81143751,0.00013894,2]
[368692798,1751301875045,-1177.40856249,0.00013894,2]
[368692799,1751301875054,-490.0,0.00013894,2]
[368692800,1751301875063,-688.62,0.00013894,2]
[368692801,1751301875073,-424.28759738,0.00013894,2]
[368692802,1751301875083,-111.79384013,0.00013894,2]
[368692803,1751301875094,-378.20615987,0.00013894,2]
[368692804,1751301875103,-507.84384013,0.00013894,2]
[368692805,1751301875121,-19.22719562,0.00013894,2]
[368692806,1751301875130,-1422.09280438,0.00013894,2]
[368692807,1751301875141,-543.51719562,0.00013894,2]
[368692808,1751301875151,-490.0,0.00013894,2]
[368692809,1751301875160,-490.0,0.00013894,2]
[368692810,1751301875170,-490.0,0.00013894,2]
[368692811,1751301875179,-66.34280438,0.00013894,2]
[368692812,1751301875191,-775.11,0.00013894,2]
[368692813,1751301875202,-142.47719562,0.00013894,2]
[368692814,1751301875211,-490.0,0.00013894,2]
[368692815,1751301875221,-169.64280438,0.00013894,2]
[368692816,1751301875239,-490.0,0.00013894,2]
[368692817,1751301875258,-740.91719562,0.00013894,2]
[368692818,1751301875267,-490.0,0.00013894,2]
[368692819,1751301875277,-283.21280438,0.00013894,2]
[368692820,1751301875312,-417.42719562,0.00013894,2]
[368692821,1751301875323,-113.91280438,0.00013894,2]
[368692822,1751301875424,-376.08719562,0.00013894,2]
[368692823,1751301875434,-490.0,0.00013894,2]
[368692824,1751301875444,-651.36,0.00013894,2]
[368692825,1751301875453,-1985.49,0.00013894,2]
[368692826,1751301875463,-490.0,0.00013894,2]
[368692827,1751301875471,-491.29858789,0.00013894,2]
[368692828,1751301875482,-1878.12,0.00013894,2]
[368692829,1751301875491,-1071.49,0.00013894,2]
[368692830,1751301875501,-349.13421649,0.00013894,2]
[368692831,1751301876271,-140.86578351,0.00013894,2]
[368692832,1751301876281,-349.13421649,0.00013894,2]
[368692833,1751301876292,-297.89578351,0.00013894,2]
[368692834,1751301876302,-490.0,0.00013894,2]
[368692835,1751301876312,-1081.07,0.00013894,2]
[368692836,1751301876322,-490.0,0.00013894,2]
[368692837,1751301876332,-563.6,0.00013894,2]
[368692838,1751301876342,-490.0,0.00013894,2]
[368692839,1751301876351,-490.0,0.00013894,2]
[368692840,1751301876362,-26.06421649,0.00013894,2]
[368692841,1751301876373,-562.70578351,0.00013894,2]
[368692842,1751301876383,-500.0,0.00013894,2]
[368692843,1751301876393,-139.39421649,0.00013894,2]
[368692844,1751301876418,-350.60578351,0.00013894,2]
[368692845,1751301876428,-490.0,0.00013894,2]
[368692846,1751301876438,-1945.6,0.00013894,2]
[368692847,1751301876447,-406.37421649,0.00013894,2]
[368692848,1751301876466,-1224.04488314,0.00013894,2]
[368692849,1751301876484,-199.59090037,0.00013894,2]
[368692850,1751301876494,-483.59909963,0.00013894,2]
[368692851,1751301876506,-6.40090037,0.00013894,2]
[368692852,1751301876516,-490.0,0.00013894,2]
[368692853,1751301876526,-30.52909963,0.00013894,2]
[368692854,1751301876537,-1248.00090037,0.00013894,2]
[368692855,1751301876548,-180.21909963,0.00013894,2]
[368692856,1751301876566,-430.87090037,0.00013894,2]
[368692857,1751301876577,-1219.97909963,0.00013894,2]
[368692858,1751301876612,178.07843444,0.00012994,7]
[368692859,1751301876636,21.92156556,0.00012994,7]
[368692860,1751301876649,-125.23090037,0.00013894,2]
[368692861,1751301876659,-490.0,0.00013894,2]
[368692862,1751301876669,-1292.94909963,0.00013894,2]
[368692863,1751301876702,-1319.8,0.00013893,2]
[368692864,1751301876712,-114.05090037,0.00013894,2]
[368692865,1751301876721,-468.64909963,0.00013894,2]
[368692866,1751301876733,-86.77090037,0.00013894,2]
[368692867,1751301876743,-917.8,0.00013894,2]
[368692868,1751301876752,-490.0,0.00013894,2]
[368692869,1751301876762,-189.94909963,0.00013894,2]
[368692870,1751301876820,-300.05090037,0.00013894,2]
[368692871,1751301876830,-490.0,0.00013894,2]
[368692872,1751301876840,-1204.52,0.00013894,2]
[368692873,1751301876850,-669.63,0.00013894,2]
[368692874,1751301876859,-490.0,0.00013894,2]
[368692875,1751301876869,-490.0,0.00013894,2]
[368692876,1751301876880,-490.0,0.00013894,2]
[368692877,1751301876891,-490.0,0.00013894,2]
[368692878,1751301876901,-490.0,0.00013894,2]
[368692879,1751301876912,-490.0,0.00013894,2]
[368692880,1751301876922,-92.40909963,0.00013894,2]
[368692881,1751301876942,-397.59090037,0.00013894,2]
[368692882,1751301876952,-490.0,0.00013894,2]
[368692883,1751301876962,-490.0,0.00013894,2]
[368692884,1751301876971,-1619.78,0.00013894,2]
[368692885,1751301876981,-412.71886591,0.00013894,2]
[368692886,1751301876993,-1247.55113409,0.00013894,2]
[368692887,1751301877002,-490.0,0.00013894,2]
[368692888,1751301877011,-1719.18,0.00013894,2]
[368692889,1751301877021,-490.0,0.00013894,2]
[368692890,1751301877030,-490.0,0.00013894,2]
[368692891,1751301877041,-423.59704227,0.00013894,2]
[368692892,1751301877051,-490.0,0.00013894,2]
[368692893,1751301877061,-377.22990887,0.00013894,2]
[368692894,1751301877071,-1302.15,0.00013894,2]
[368692895,1751301877082,-490.0,0.00013894,2]
[368692896,1751301877092,-158.86191477,0.00013894,2]
[368692897,1751301877104,-490.0,0.00013894,2]
[368692898,1751301877117,-490.0,0.00013894,2]
[368692899,1751301877143,-74.07808523,0.00013894,2]
[368692900,1751301877153,-490.0,0.00013894,2]
[368692901,1751301877163,-490.0,0.00013894,2]
[368692902,1751301877173,-490.0,0.00013894,2]
[368692903,1751301877184,-490.0,0.00013894,2]
[368692904,1751301877194,-1506.57,0.00013894,2]
[368692905,1751301877204,-490.0,0.00013894,2]
[368692906,1751301877214,-326.69191477,0.00013894,2]
[368692907,1751301877251,-163.30808523,0.00013894,2]
[368692908,1751301877262,-490.0,0.00013894,2]
[368692909,1751301877271,-490.0,0.00013894,2]
[368692910,1751301877282,-490.0,0.00013894,2]
[368692911,1751301877292,-271.58581172,0.00013894,2]
[368692912,1751301877311,-218.41418828,0.00013894,2]
[368692913,1751301877320,-477.34581172,0.00013894,2]
[368692914,1751301877367,-12.65418828,0.00013894,2]
[368692915,1751301877377,-1094.06581172,0.00013894,2]
[368692916,1751301877468,-1682.98418828,0.00013894,2]
[368692917,1751301877478,-619.47,0.00013894,2]
[368692918,1751301877489,-490.0,0.00013894,2]
[368692919,1751301877498,-490.0,0.00013894,2]
[368692920,1751301877508,-490.0,0.00013894,2]
[368692921,1751301877518,-184.62581172,0.00013894,2]
[368692922,1751301877530,-490.0,0.00013894,2]
[368692923,1751301877548,-716.05,0.00013894,2]
[368692924,1751301877566,-148.62418828,0.00013894,2]
[368692925,1751301877577,-490.0,0.00013894,2]
[368692926,1751301877591,-845.92581172,0.00013894,2]
[368692927,1751301877602,-644.01418828,0.00013894,2]
[368692928,1751301877612,-490.0,0.00013894,2]
[368692929,1751301877621,-1135.92581172,0.00013894,2]
[368692930,1751301877634,-147.25418828,0.00013894,2]
[368692931,1751301877643,-650.2,0.00013894,2]
[368692932,1751301877653,-490.0,0.00013894,2]
[368692933,1751301877665,-625.35,0.00013894,2]
[368692934,1751301877676,-504.19457575,0.00013894,2]
[368692935,1751301877686,-490.0,0.00013894,2]
[368692936,1751301877696,-490.0,0.00013894,2]
[368692937,1751301877706,-34.43123597,0.00013894,2]
[368692938,1751301877749,-455.56876403,0.00013894,2]
[368692939,1751301877759,-651.59,0.00013894,2]
[368692940,1751301877769,-617.87111558,0.00013894,2]
[368692941,1751301877793,-495.8,0.00013894,2]
[368692942,1751301877806,-916.04888442,0.00013894,2]
[368692943,1751301877816,-569.28803064,0.00013894,2]
[368692944,1751301877827,-490.0,0.00013894,2]
[368692945,1751301877836,-490.0,0.00013894,2]
[368692946,1751301877846,-490.0,0.00013894,2]
[368692947,1751301877856,-623.35,0.00013894,2]
[368692948,1751301877866,-490.0,0.00013894,2]
[368692949,1751301877876,-490.0,0.00013894,2]
[368692950,1751301877886,-276.20308494,0.00013894,2]
[368692951,1751301877898,-213.79691506,0.00013894,2]
[368692952,1751301877909,-490.0,0.00013894,2]
[368692953,1751301877918,-701.30308494,0.00013894,2]
[368692954,1751301877931,-491.19691506,0.00013894,2]
[368692955,1751301877941,-437.60308494,0.00013894,2]
[368692956,1751301877953,-52.39691506,0.00013894,2]
[368692957,1751301877962,-490.0,0.00013894,2]
[368692958,1751301877972,-490.0,0.00013894,2]
[368692959,1751301877985,-490.0,0.00013894,2]
[368692960,1751301877994,-490.0,0.00013894,2]
[368692961,1751301878004,-131.88308494,0.00013894,2]
[368692962,1751301878021,-1310.27691506,0.00013894,2]
[368692963,1751301878031,-490.0,0.00013894,2]
[368692964,1751301878040,-490.0,0.00013894,2]
[368692965,1751301878051,-340.53378969,0.00013894,2]
[368692966,1751301878061,-944.67,0.00013894,2]
[368692967,1751301878070,-331.3338978,0.00013894,2]
[368692968,1751301878080,-490.31375615,0.00013894,2]
[368692969,1751301878089,-490.0,0.00013894,2]
[368692970,1751301878099,-1902.12,0.00013894,2]